[Event "Titled Tuesday Blitz November 15 Early 2022"]
[White "Stribuk, Artiom"]
[Black "Tasev, Dejan"]
[WhiteFideId "13515659"]
[BlackFideId "936618"]
[WhiteElo "2371"]
[BlackElo "2256"]
[Result "1-0"]
[Round "05"]
[TimeControl "180+1"]
[Date "2022.11.16"]
[WhiteClock "0:00:09"]
[BlackClock "0:00:06"]

1. d4 {[%clk 0:02:59]}  Nf6 {[%clk 0:02:59]} 2. c4 {[%clk 0:03:00]}  g6 {[%clk 0:02:59]} 3. g3 {[%clk 0:03:00]}  Bg7 {[%clk 0:02:59]} 4. Bg2 {[%clk 0:03:00]}  O-O {[%clk 0:02:59]} 5. Nc3 {[%clk 0:03:01]}  d6 {[%clk 0:02:59]} 6. Nf3 {[%clk 0:03:01]}  Nbd7 {[%clk 0:02:59]} 7. O-O {[%clk 0:03:01]}  c5 {[%clk 0:02:59]} 8. e4 {[%clk 0:03:02]}  cxd4 {[%clk 0:02:58]} 9. Nxd4 {[%clk 0:03:03]}  a6 {[%clk 0:02:58]} 10. h3 {[%clk 0:02:52]}  Rb8 {[%clk 0:02:50]} 11. Be3 {[%clk 0:02:50]}  Ne5 {[%clk 0:02:47]} 12. b3 {[%clk 0:02:46]}  Bd7 {[%clk 0:02:46]} 13. Rc1 {[%clk 0:02:06]}  Rc8 {[%clk 0:02:31]} 14. Qe2 {[%clk 0:01:58]}  Nc6 {[%clk 0:02:27]} 15. Nf3 {[%clk 0:01:41]}  Ne8 {[%clk 0:02:19]} 16. Rfd1 {[%clk 0:01:38]}  Nc7 {[%clk 0:02:19]} 17. Nd5 {[%clk 0:01:29]}  Nxd5 {[%clk 0:02:12]} 18. exd5 {[%clk 0:01:25]}  Ne5 {[%clk 0:02:03]} 19. Nd4 {[%clk 0:01:25]}  Be8 {[%clk 0:01:53]} 20. a4 {[%clk 0:01:21]}  Nd7 {[%clk 0:01:51]} 21. h4 {[%clk 0:01:17]}  Nf6 {[%clk 0:01:50]} 22. Re1 {[%clk 0:01:13]}  Bd7 {[%clk 0:01:48]} 23. Qd2 {[%clk 0:01:07]}  Re8 {[%clk 0:01:40]} 24. a5 {[%clk 0:01:07]}  Ng4 {[%clk 0:01:27]} 25. Bg5 {[%clk 0:01:03]}  h6 {[%clk 0:01:21]} 26. Bf4 {[%clk 0:00:59]}  Kh7 {[%clk 0:01:10]} 27. b4 {[%clk 0:00:51]}  Nf6 {[%clk 0:00:44]} 28. Bf3 {[%clk 0:00:48]}  Bg4 {[%clk 0:00:42]} 29. Bxg4 {[%clk 0:00:47]}  Nxg4 {[%clk 0:00:43]} 30. Kg2 {[%clk 0:00:38]}  Qd7 {[%clk 0:00:40]} 31. Qd3 {[%clk 0:00:33]}  Ne5 {[%clk 0:00:32]} 32. Bxe5 {[%clk 0:00:33]}  dxe5 {[%clk 0:00:28]} 33. Nf3 {[%clk 0:00:32]}  e6 {[%clk 0:00:20]} 34. Nxe5 {[%clk 0:00:30]}  Bxe5 {[%clk 0:00:19]} 35. Rxe5 {[%clk 0:00:31]}  exd5 {[%clk 0:00:19]} 36. Rxd5 {[%clk 0:00:31]}  Qc6 {[%clk 0:00:18]} 37. h5 {[%clk 0:00:28]}  Rc7 {[%clk 0:00:17]} 38. Rd1 {[%clk 0:00:22]}  Ree7 {[%clk 0:00:12]} 39. hxg6+ {[%clk 0:00:20]}  fxg6 {[%clk 0:00:12]} 40. c5 {[%clk 0:00:16]}  Rg7 {[%clk 0:00:11]} 41. Kh2 {[%clk 0:00:15]}  Rcf7 {[%clk 0:00:11]} 42. Rd2 {[%clk 0:00:16]}  Qf6 {[%clk 0:00:11]} 43. Rd6 {[%clk 0:00:15]}  Qg5 {[%clk 0:00:11]} 44. Kg2 {[%clk 0:00:14]}  h5 {[%clk 0:00:11]} 45. Rd5 {[%clk 0:00:13]}  Qg4 {[%clk 0:00:11]} 46. Rd4 {[%clk 0:00:12]}  Qe6 {[%clk 0:00:11]} 47. Re2 {[%clk 0:00:12]}  Qf6 {[%clk 0:00:11]} 48. Rd6 {[%clk 0:00:11]}  Qg5 {[%clk 0:00:11]} 49. Rd5 {[%clk 0:00:11]}  Qf6 {[%clk 0:00:11]} 50. Rd6 {[%clk 0:00:10]}  Qg5 {[%clk 0:00:12]} 51. Re4 {[%clk 0:00:09]}  Qf5 {[%clk 0:00:11]} 52. Qe3 {[%clk 0:00:09]}  Qf6 {[%clk 0:00:10]} 53. Rf4 {[%clk 0:00:08]}  Qb2 {[%clk 0:00:09]} 54. Qe4 {[%clk 0:00:07]}  Rxf4 {[%clk 0:00:08]} 55. Qxf4 {[%clk 0:00:08]}  Qb1 {[%clk 0:00:06]} 56. Rb6 {[%clk 0:00:08]}  Qd3 {[%clk 0:00:04]} 57. Qf3 {[%clk 0:00:08]}  Qd7 {[%clk 0:00:04]} 58. Qe4 {[%clk 0:00:08]}  Qc7 {[%clk 0:00:03]} 59. Re6 {[%clk 0:00:07]}  Qd7 {[%clk 0:00:03]} 60. Rd6 {[%clk 0:00:06]}  Qf7 {[%clk 0:00:03]} 61. Qf3 {[%clk 0:00:06]}  Kh6 {[%clk 0:00:03]} 62. Qxf7 {[%clk 0:00:06]}  Rxf7 {[%clk 0:00:04]} 63. Rb6 {[%clk 0:00:06]}  Kg7 {[%clk 0:00:04]} 64. f4 {[%clk 0:00:06]}  Kh6 {[%clk 0:00:04]} 65. Kf3 {[%clk 0:00:07]}  Kg7 {[%clk 0:00:04]} 66. Ke4 {[%clk 0:00:07]}  Re7+ {[%clk 0:00:05]} 67. Kd5 {[%clk 0:00:07]}  Re3 {[%clk 0:00:05]} 68. Rxb7+ {[%clk 0:00:07]}  Kf6 {[%clk 0:00:06]} 69. c6 {[%clk 0:00:08]}  Rxg3 {[%clk 0:00:05]} 70. c7 {[%clk 0:00:09]}  Rc3 {[%clk 0:00:05]} 71. Rb6+ {[%clk 0:00:08]}  Ke7 {[%clk 0:00:06]} 72. Rc6 {[%clk 0:00:09]}  Rd3+ {[%clk 0:00:06]} 73. Ke4 {[%clk 0:00:09]} 1-0


[Site "https://www.chess.com"]

[Event "Titled Tuesday Blitz November 15 Early 2022"]
[White "Szente Varga, Fruzsina"]
[Black "Kopczynski, Michal"]
[WhiteFideId "712264"]
[BlackFideId "1124200"]
[WhiteElo "1994"]
[BlackElo "2235"]
[Result "1-0"]
[Round "05"]
[TimeControl "180+1"]
[Date "2022.11.16"]
[WhiteClock "0:00:33"]
[BlackClock "0:00:01"]

1. e4 {[%clk 0:03:00]}  c5 {[%clk 0:02:59]} 2. Nf3 {[%clk 0:02:59]}  d6 {[%clk 0:03:00]} 3. d4 {[%clk 0:02:59]}  cxd4 {[%clk 0:03:00]} 4. Qxd4 {[%clk 0:03:00]}  Bd7 {[%clk 0:03:00]} 5. c4 {[%clk 0:02:50]}  Nc6 {[%clk 0:03:01]} 6. Qe3 {[%clk 0:02:48]}  g6 {[%clk 0:03:00]} 7. Nc3 {[%clk 0:02:47]}  Bg7 {[%clk 0:03:00]} 8. Bd3 {[%clk 0:02:47]}  Nf6 {[%clk 0:03:01]} 9. h3 {[%clk 0:02:46]}  O-O {[%clk 0:02:59]} 10. O-O {[%clk 0:02:46]}  Qa5 {[%clk 0:02:58]} 11. a3 {[%clk 0:02:40]}  Rfc8 {[%clk 0:02:50]} 12. Bd2 {[%clk 0:02:38]}  Qh5 {[%clk 0:02:47]} 13. Rac1 {[%clk 0:02:30]}  Bxh3 {[%clk 0:02:37]} 14. gxh3 {[%clk 0:02:30]}  Qxh3 {[%clk 0:02:38]} 15. Ng5 {[%clk 0:02:24]}  Qg4+ {[%clk 0:01:37]} 16. Qg3 {[%clk 0:02:24]}  Qxg3+ {[%clk 0:01:21]} 17. fxg3 {[%clk 0:02:24]}  h6 {[%clk 0:01:21]} 18. Nf3 {[%clk 0:02:20]}  Ng4 {[%clk 0:01:21]} 19. b4 {[%clk 0:02:08]}  Nce5 {[%clk 0:00:58]} 20. Nxe5 {[%clk 0:01:58]}  Nxe5 {[%clk 0:00:59]} 21. Be2 {[%clk 0:01:55]}  Nxc4 {[%clk 0:00:58]} 22. Bxc4 {[%clk 0:01:54]}  Rxc4 {[%clk 0:00:59]} 23. Nd5 {[%clk 0:01:48]}  Rxe4 {[%clk 0:00:59]} 24. Rfe1 {[%clk 0:01:48]}  Rxe1+ {[%clk 0:00:56]} 25. Bxe1 {[%clk 0:01:49]}  e6 {[%clk 0:00:52]} 26. Ne7+ {[%clk 0:01:21]}  Kf8 {[%clk 0:00:52]} 27. Nc8 {[%clk 0:01:22]}  d5 {[%clk 0:00:41]} 28. Rc7 {[%clk 0:01:19]}  Be5 {[%clk 0:00:38]} 29. Rc2 {[%clk 0:01:19]}  Ke8 {[%clk 0:00:34]} 30. Bf2 {[%clk 0:01:07]}  d4 {[%clk 0:00:20]} 31. Rc5 {[%clk 0:01:05]}  f6 {[%clk 0:00:17]} 32. Rxe5 {[%clk 0:00:40]}  fxe5 {[%clk 0:00:17]} 33. Nd6+ {[%clk 0:00:41]}  Kd7 {[%clk 0:00:16]} 34. Nxb7 {[%clk 0:00:41]}  Kc6 {[%clk 0:00:13]} 35. Nc5 {[%clk 0:00:41]}  Kd5 {[%clk 0:00:14]} 36. Kf1 {[%clk 0:00:38]}  a5 {[%clk 0:00:14]} 37. Be1 {[%clk 0:00:37]}  axb4 {[%clk 0:00:14]} 38. Bxb4 {[%clk 0:00:35]}  e4 {[%clk 0:00:14]} 39. Ke2 {[%clk 0:00:35]}  d3+ {[%clk 0:00:13]} 40. Ke3 {[%clk 0:00:35]}  g5 {[%clk 0:00:02]} 41. Nxe4 {[%clk 0:00:34]}  e5 {[%clk 0:00:02]} 42. Kxd3 {[%clk 0:00:33]}  Rc8 {[%clk 0:00:01]} 43. Nf6+ {[%clk 0:00:33]} 1-0


[Site "https://www.chess.com"]

[Event "Titled Tuesday Blitz November 15 Early 2022"]
[White "Tan, Jun Ying"]
[Black "Hadzovic, Amir"]
[WhiteFideId "5710413"]
[BlackFideId "14402300"]
[WhiteElo "2089"]
[BlackElo "2262"]
[Result "0-1"]
[Round "05"]
[TimeControl "180+1"]
[Date "2022.11.16"]
[WhiteClock "0:00:19"]
[BlackClock "0:00:07"]

1. d4 {[%clk 0:03:00]}  d5 {[%clk 0:02:53]} 2. c4 {[%clk 0:02:59]}  e6 {[%clk 0:02:54]} 3. Nf3 {[%clk 0:02:58]}  Nf6 {[%clk 0:02:53]} 4. Bg5 {[%clk 0:02:59]}  Be7 {[%clk 0:02:53]} 5. Qc2 {[%clk 0:02:57]}  O-O {[%clk 0:02:53]} 6. Nc3 {[%clk 0:02:56]}  c6 {[%clk 0:02:52]} 7. e3 {[%clk 0:02:56]}  Nbd7 {[%clk 0:02:51]} 8. O-O-O {[%clk 0:02:55]}  a6 {[%clk 0:02:50]} 9. Bd3 {[%clk 0:02:48]}  b5 {[%clk 0:02:48]} 10. cxd5 {[%clk 0:02:44]}  exd5 {[%clk 0:02:44]} 11. Ne5 {[%clk 0:02:43]}  Bb7 {[%clk 0:02:28]} 12. Nxd7 {[%clk 0:02:42]}  Qxd7 {[%clk 0:02:21]} 13. Bxf6 {[%clk 0:02:20]}  Bxf6 {[%clk 0:02:22]} 14. Bf5 {[%clk 0:02:15]}  Qe7 {[%clk 0:02:17]} 15. Bxh7+ {[%clk 0:02:15]}  Kh8 {[%clk 0:02:17]} 16. Qf5 {[%clk 0:02:16]}  g6 {[%clk 0:02:12]} 17. Bxg6 {[%clk 0:02:03]}  fxg6 {[%clk 0:02:13]} 18. Qxg6 {[%clk 0:02:03]}  Rf7 {[%clk 0:01:58]} 19. h4 {[%clk 0:02:00]}  Rg7 {[%clk 0:01:57]} 20. Qh5+ {[%clk 0:01:58]}  Rh7 {[%clk 0:01:57]} 21. Qf3 {[%clk 0:01:57]}  Rf8 {[%clk 0:01:50]} 22. Ne2 {[%clk 0:01:52]}  Bxd4 {[%clk 0:01:41]} 23. Nf4 {[%clk 0:01:52]}  Rxf4 {[%clk 0:00:58]} 24. Qxf4 {[%clk 0:01:51]}  Be5 {[%clk 0:00:58]} 25. Qg5 {[%clk 0:01:49]}  Bf6 {[%clk 0:00:49]} 26. Qf5 {[%clk 0:01:47]}  Rf7 {[%clk 0:00:44]} 27. Qh5+ {[%clk 0:01:39]}  Rh7 {[%clk 0:00:43]} 28. Qf5 {[%clk 0:01:39]}  Rf7 {[%clk 0:00:42]} 29. Qc2 {[%clk 0:01:36]}  Qe5 {[%clk 0:00:36]} 30. Rd4 {[%clk 0:01:25]}  Bc8 {[%clk 0:00:33]} 31. Rf4 {[%clk 0:01:23]}  Be6 {[%clk 0:00:29]} 32. g4 {[%clk 0:01:19]}  c5 {[%clk 0:00:21]} 33. g5 {[%clk 0:01:02]}  Bg7 {[%clk 0:00:21]} 34. Rxf7 {[%clk 0:01:00]}  Bxf7 {[%clk 0:00:22]} 35. h5 {[%clk 0:00:56]}  Qxg5 {[%clk 0:00:14]} 36. Qxc5 {[%clk 0:00:55]}  Qe5 {[%clk 0:00:08]} 37. Qc8+ {[%clk 0:00:53]}  Kh7 {[%clk 0:00:08]} 38. Qc2+ {[%clk 0:00:54]}  Kh8 {[%clk 0:00:07]} 39. h6 {[%clk 0:00:53]}  Bf6 {[%clk 0:00:07]} 40. h7 {[%clk 0:00:52]}  Be6 {[%clk 0:00:06]} 41. Rg1 {[%clk 0:00:44]}  Bf5 {[%clk 0:00:06]} 42. Qc3 {[%clk 0:00:38]}  Qxc3+ {[%clk 0:00:06]} 43. bxc3 {[%clk 0:00:38]}  Bxc3 {[%clk 0:00:07]} 44. Rg8+ {[%clk 0:00:36]}  Kxh7 {[%clk 0:00:07]} 45. Ra8 {[%clk 0:00:37]}  a5 {[%clk 0:00:06]} 46. Rb8 {[%clk 0:00:36]}  b4 {[%clk 0:00:06]} 47. Rb5 {[%clk 0:00:36]}  Be4 {[%clk 0:00:06]} 48. Rxa5 {[%clk 0:00:34]}  Kg6 {[%clk 0:00:06]} 49. Ra6+ {[%clk 0:00:33]}  Kg5 {[%clk 0:00:06]} 50. Rb6 {[%clk 0:00:33]}  Kg4 {[%clk 0:00:06]} 51. Rb8 {[%clk 0:00:32]}  Kf3 {[%clk 0:00:07]} 52. Rf8+ {[%clk 0:00:32]}  Ke2 {[%clk 0:00:07]} 53. f4 {[%clk 0:00:25]}  Kxe3 {[%clk 0:00:05]} 54. f5 {[%clk 0:00:25]}  d4 {[%clk 0:00:03]} 55. Re8 {[%clk 0:00:18]}  d3 {[%clk 0:00:04]} 56. Kd1 {[%clk 0:00:18]}  Kf4 {[%clk 0:00:04]} 57. Rxe4+ {[%clk 0:00:16]}  Kxe4 {[%clk 0:00:05]} 58. f6 {[%clk 0:00:16]}  Bxf6 {[%clk 0:00:05]} 59. Kd2 {[%clk 0:00:17]}  Bc3+ {[%clk 0:00:05]} 60. Kd1 {[%clk 0:00:18]}  Ke3 {[%clk 0:00:05]} 61. Kc1 {[%clk 0:00:19]}  Ke2 {[%clk 0:00:05]} 62. Kb1 {[%clk 0:00:19]}  d2 {[%clk 0:00:06]} 63. Kc2 {[%clk 0:00:19]}  d1=Q# {[%clk 0:00:07]} 0-1


[Site "https://www.chess.com"]

[Event "Titled Tuesday Blitz November 15 Early 2022"]
[White "Tarigan, Gilbert Elroy"]
[Black "Dubov, Daniil"]
[WhiteFideId "7108133"]
[BlackFideId "24126055"]
[WhiteElo "2284"]
[BlackElo "2791"]
[Result "1/2-1/2"]
[Round "05"]
[TimeControl "180+1"]
[Date "2022.11.15"]
[WhiteClock "0:00:09"]
[BlackClock "0:00:06"]

1. d4 {[%clk 0:03:00]}  Nf6 {[%clk 0:02:59]} 2. Nf3 {[%clk 0:03:00]}  d5 {[%clk 0:02:59]} 3. c4 {[%clk 0:02:59]}  c6 {[%clk 0:02:59]} 4. Nc3 {[%clk 0:02:57]}  dxc4 {[%clk 0:02:59]} 5. e4 {[%clk 0:02:57]}  b5 {[%clk 0:02:58]} 6. Be2 {[%clk 0:02:57]}  e6 {[%clk 0:02:57]} 7. a4 {[%clk 0:02:56]}  b4 {[%clk 0:02:57]} 8. e5 {[%clk 0:02:56]}  bxc3 {[%clk 0:02:50]} 9. exf6 {[%clk 0:02:56]}  gxf6 {[%clk 0:02:50]} 10. bxc3 {[%clk 0:02:56]}  Nd7 {[%clk 0:02:48]} 11. O-O {[%clk 0:02:51]}  Bd6 {[%clk 0:02:44]} 12. Nd2 {[%clk 0:02:50]}  Nb6 {[%clk 0:02:39]} 13. Nxc4 {[%clk 0:02:46]}  Nxc4 {[%clk 0:02:38]} 14. Bxc4 {[%clk 0:02:46]}  Qa5 {[%clk 0:02:26]} 15. Qf3 {[%clk 0:02:44]}  Ke7 {[%clk 0:02:26]} 16. Bh6 {[%clk 0:02:38]}  Rg8 {[%clk 0:02:25]} 17. Rfe1 {[%clk 0:02:37]}  Bd7 {[%clk 0:02:22]} 18. g3 {[%clk 0:02:32]}  Rab8 {[%clk 0:02:19]} 19. Rab1 {[%clk 0:02:12]}  Qxa4 {[%clk 0:02:12]} 20. Bf1 {[%clk 0:02:11]}  Qa5 {[%clk 0:00:53]} 21. Ra1 {[%clk 0:01:54]}  Qc7 {[%clk 0:00:51]} 22. c4 {[%clk 0:01:52]}  c5 {[%clk 0:00:43]} 23. d5 {[%clk 0:01:47]}  Rg6 {[%clk 0:00:42]} 24. Bd2 {[%clk 0:01:34]}  Rbg8 {[%clk 0:00:36]} 25. Ra3 {[%clk 0:01:13]}  Be5 {[%clk 0:00:27]} 26. Bg2 {[%clk 0:01:05]}  Kf8 {[%clk 0:00:25]} 27. Bc3 {[%clk 0:00:59]}  Bxc3 {[%clk 0:00:20]} 28. Qxc3 {[%clk 0:01:00]}  Kg7 {[%clk 0:00:16]} 29. Qa1 {[%clk 0:01:00]}  e5 {[%clk 0:00:06]} 30. Rxa7 {[%clk 0:01:00]}  Qd8 {[%clk 0:00:06]} 31. Qa5 {[%clk 0:00:58]}  Qxa5 {[%clk 0:00:05]} 32. Rxa5 {[%clk 0:00:59]}  Rc8 {[%clk 0:00:05]} 33. Rb1 {[%clk 0:00:49]}  Bf5 {[%clk 0:00:03]} 34. Rbb5 {[%clk 0:00:47]}  Rg4 {[%clk 0:00:02]} 35. Bh3 {[%clk 0:00:41]}  Rg5 {[%clk 0:00:03]} 36. Bxf5 {[%clk 0:00:41]}  Rxf5 {[%clk 0:00:03]} 37. Rxc5 {[%clk 0:00:42]}  Rd8 {[%clk 0:00:04]} 38. Rc7 {[%clk 0:00:38]}  Rb8 {[%clk 0:00:03]} 39. Ra2 {[%clk 0:00:26]}  Rb1+ {[%clk 0:00:03]} 40. Kg2 {[%clk 0:00:26]}  e4 {[%clk 0:00:03]} 41. Re7 {[%clk 0:00:24]}  Re1 {[%clk 0:00:02]} 42. d6 {[%clk 0:00:19]}  Rd1 {[%clk 0:00:02]} 43. Rxe4 {[%clk 0:00:10]}  Rxd6 {[%clk 0:00:01]} 44. Re7 {[%clk 0:00:11]}  Rc6 {[%clk 0:00:01]} 45. Raa7 {[%clk 0:00:11]}  Rfc5 {[%clk 0:00:01]} 46. Rxf7+ {[%clk 0:00:11]}  Kg6 {[%clk 0:00:02]} 47. Rg7+ {[%clk 0:00:12]}  Kf5 {[%clk 0:00:02]} 48. Rxh7 {[%clk 0:00:12]}  Rxc4 {[%clk 0:00:03]} 49. Rh5+ {[%clk 0:00:12]}  Kg6 {[%clk 0:00:03]} 50. Rah7 {[%clk 0:00:11]}  Rd6 {[%clk 0:00:02]} 51. R7h6+ {[%clk 0:00:11]}  Kf7 {[%clk 0:00:03]} 52. Rh7+ {[%clk 0:00:12]}  Kg6 {[%clk 0:00:03]} 53. R5h6+ {[%clk 0:00:12]}  Kf5 {[%clk 0:00:03]} 54. Rh4 {[%clk 0:00:11]}  Rc2 {[%clk 0:00:02]} 55. Rf4+ {[%clk 0:00:10]}  Kg6 {[%clk 0:00:03]} 56. Rh8 {[%clk 0:00:10]}  Kg7 {[%clk 0:00:03]} 57. Ra8 {[%clk 0:00:09]}  Kg6 {[%clk 0:00:04]} 58. Rg8+ {[%clk 0:00:09]}  Kf7 {[%clk 0:00:04]} 59. Rb8 {[%clk 0:00:10]}  Kg6 {[%clk 0:00:04]} 60. Rb5 {[%clk 0:00:10]}  Re6 {[%clk 0:00:04]} 61. h4 {[%clk 0:00:10]}  Rd6 {[%clk 0:00:03]} 62. Rg4+ {[%clk 0:00:10]}  Kh6 {[%clk 0:00:02]} 63. Rb8 {[%clk 0:00:10]}  Kh7 {[%clk 0:00:01]} 64. Rb7+ {[%clk 0:00:10]}  Kh6 {[%clk 0:00:01]} 65. Rb8 {[%clk 0:00:11]}  Kh7 {[%clk 0:00:02]} 66. Rf8 {[%clk 0:00:09]}  Rc7 {[%clk 0:00:02]} 67. Rf4 {[%clk 0:00:07]}  Kg7 {[%clk 0:00:01]} 68. Ra8 {[%clk 0:00:07]}  Rc2 {[%clk 0:00:02]} 69. Raa4 {[%clk 0:00:06]}  Kg6 {[%clk 0:00:01]} 70. Rg4+ {[%clk 0:00:06]}  Kh6 {[%clk 0:00:01]} 71. Raf4 {[%clk 0:00:06]}  Re6 {[%clk 0:00:02]} 72. Rg8 {[%clk 0:00:06]}  Kh7 {[%clk 0:00:02]} 73. Rgg4 {[%clk 0:00:05]}  Kh6 {[%clk 0:00:02]} 74. Rf5 {[%clk 0:00:05]}  Rd2 {[%clk 0:00:01]} 75. h5 {[%clk 0:00:06]}  Kh7 {[%clk 0:00:02]} 76. Rg6 {[%clk 0:00:06]}  Rdd6 {[%clk 0:00:02]} 77. Kh3 {[%clk 0:00:06]}  Rc6 {[%clk 0:00:03]} 78. Kh4 {[%clk 0:00:05]}  Rc4+ {[%clk 0:00:03]} 79. g4 {[%clk 0:00:05]}  Rcc6 {[%clk 0:00:03]} 80. Kh3 {[%clk 0:00:04]}  Rc3+ {[%clk 0:00:03]} 81. Kg2 {[%clk 0:00:04]}  Rcc6 {[%clk 0:00:04]} 82. Rf3 {[%clk 0:00:03]}  Rc4 {[%clk 0:00:03]} 83. Kg3 {[%clk 0:00:02]}  Rcc6 {[%clk 0:00:03]} 84. Rf4 {[%clk 0:00:03]}  Ra6 {[%clk 0:00:03]} 85. f3 {[%clk 0:00:03]}  Rac6 {[%clk 0:00:04]} 86. Rf5 {[%clk 0:00:03]}  Ra6 {[%clk 0:00:04]} 87. g5 {[%clk 0:00:04]}  fxg5 {[%clk 0:00:04]} 88. Rfxg5 {[%clk 0:00:02]}  Rxg6 {[%clk 0:00:01]} 89. Rxg6 {[%clk 0:00:03]}  Ra5 {[%clk 0:00:01]} 90. Kg4 {[%clk 0:00:03]}  Ra1 {[%clk 0:00:02]} 91. Rf6 {[%clk 0:00:03]}  Rg1+ {[%clk 0:00:02]} 92. Kf5 {[%clk 0:00:03]}  Rh1 {[%clk 0:00:03]} 93. Kg4 {[%clk 0:00:03]}  Rg1+ {[%clk 0:00:03]} 94. Kh4 {[%clk 0:00:02]}  Rh1+ {[%clk 0:00:03]} 95. Kg5 {[%clk 0:00:03]}  Kg7 {[%clk 0:00:03]} 96. h6+ {[%clk 0:00:02]}  Kg8 {[%clk 0:00:02]} 97. f4 {[%clk 0:00:02]}  Rg1+ {[%clk 0:00:02]} 98. Kf5 {[%clk 0:00:03]}  Ra1 {[%clk 0:00:01]} 99. Rc6 {[%clk 0:00:02]}  Kh7 {[%clk 0:00:02]} 100. Kg5 {[%clk 0:00:02]}  Rg1+ {[%clk 0:00:02]} 101. Kf6 {[%clk 0:00:03]}  Ra1 {[%clk 0:00:02]} 102. Rc7+ {[%clk 0:00:02]}  Kxh6 {[%clk 0:00:02]} 103. Rc6 {[%clk 0:00:03]}  Kh7 {[%clk 0:00:01]} 104. f5 {[%clk 0:00:03]}  Kg8 {[%clk 0:00:01]} 105. Rc8+ {[%clk 0:00:04]}  Kh7 {[%clk 0:00:02]} 106. Rc7+ {[%clk 0:00:04]}  Kg8 {[%clk 0:00:02]} 107. Kg6 {[%clk 0:00:05]}  Rg1+ {[%clk 0:00:02]} 108. Kf6 {[%clk 0:00:06]}  Rf1 {[%clk 0:00:03]} 109. Rc6 {[%clk 0:00:05]}  Rf2 {[%clk 0:00:02]} 110. Rc5 {[%clk 0:00:06]}  Kh7 {[%clk 0:00:02]} 111. Rb5 {[%clk 0:00:06]}  Kg8 {[%clk 0:00:02]} 112. Re5 {[%clk 0:00:07]}  Kf8 {[%clk 0:00:02]} 113. Ra5 {[%clk 0:00:07]}  Kg8 {[%clk 0:00:03]} 114. Rb5 {[%clk 0:00:07]}  Rf1 {[%clk 0:00:03]} 115. Rc5 {[%clk 0:00:07]}  Rf2 {[%clk 0:00:03]} 116. Ke7 {[%clk 0:00:08]}  Re2+ {[%clk 0:00:04]} 117. Kf6 {[%clk 0:00:08]}  Rf2 {[%clk 0:00:04]} 118. Ke6 {[%clk 0:00:09]}  Re2+ {[%clk 0:00:03]} 119. Re5 {[%clk 0:00:09]}  Rxe5+ {[%clk 0:00:03]} 120. Kxe5 {[%clk 0:00:10]}  Kf7 {[%clk 0:00:04]} 121. f6 {[%clk 0:00:10]}  Kf8 {[%clk 0:00:05]} 122. Ke6 {[%clk 0:00:10]}  Ke8 {[%clk 0:00:05]} 123. f7+ {[%clk 0:00:10]}  Kf8 {[%clk 0:00:06]} 124. Kf6 {[%clk 0:00:09]} 1/2-1/2


[Site "https://www.chess.com"]

[Event "Titled Tuesday Blitz November 15 Early 2022"]
[White "Tregubov, Pavel V."]
[Black "Dudzinski, Pawel"]
[WhiteFideId "4115341"]
[BlackFideId "1117890"]
[WhiteElo "2448"]
[BlackElo "2086"]
[Result "1-0"]
[Round "05"]
[TimeControl "180+1"]
[Date "2022.11.16"]
[WhiteClock "0:00:33"]
[BlackClock "0:00:04"]

1. e4 {[%clk 0:03:00]}  c6 {[%clk 0:02:30]} 2. Nf3 {[%clk 0:02:59]}  d5 {[%clk 0:02:30]} 3. Nc3 {[%clk 0:02:59]}  dxe4 {[%clk 0:02:31]} 4. Nxe4 {[%clk 0:02:59]}  Nf6 {[%clk 0:02:31]} 5. Qe2 {[%clk 0:02:59]}  Nxe4 {[%clk 0:02:31]} 6. Qxe4 {[%clk 0:02:59]}  Qa5 {[%clk 0:02:32]} 7. b4 {[%clk 0:02:44]}  Qf5 {[%clk 0:02:21]} 8. Bd3 {[%clk 0:02:41]}  Qxe4+ {[%clk 0:02:19]} 9. Bxe4 {[%clk 0:02:41]}  e5 {[%clk 0:02:11]} 10. Nxe5 {[%clk 0:02:34]}  Bxb4 {[%clk 0:02:11]} 11. Rb1 {[%clk 0:02:24]}  Bd6 {[%clk 0:01:51]} 12. Nc4 {[%clk 0:02:23]}  Be7 {[%clk 0:01:50]} 13. Na5 {[%clk 0:02:07]}  b6 {[%clk 0:00:49]} 14. Nxc6 {[%clk 0:02:06]}  Bb7 {[%clk 0:00:48]} 15. Nxe7 {[%clk 0:02:07]}  Bxe4 {[%clk 0:00:47]} 16. d3 {[%clk 0:02:07]}  Bxg2 {[%clk 0:00:40]} 17. Rg1 {[%clk 0:02:07]}  Kxe7 {[%clk 0:00:31]} 18. Rxg2 {[%clk 0:02:05]}  g6 {[%clk 0:00:31]} 19. Rb4 {[%clk 0:01:56]}  Re8 {[%clk 0:00:29]} 20. Re4+ {[%clk 0:01:53]}  Kd7 {[%clk 0:00:29]} 21. Rxe8 {[%clk 0:01:53]}  Kxe8 {[%clk 0:00:30]} 22. Rg4 {[%clk 0:01:43]}  Nc6 {[%clk 0:00:30]} 23. Bb2 {[%clk 0:01:40]}  Kd7 {[%clk 0:00:26]} 24. Kd2 {[%clk 0:01:40]}  Re8 {[%clk 0:00:21]} 25. h4 {[%clk 0:01:36]}  h5 {[%clk 0:00:21]} 26. Rf4 {[%clk 0:01:35]}  f5 {[%clk 0:00:19]} 27. c4 {[%clk 0:01:17]}  Ne5 {[%clk 0:00:07]} 28. Bxe5 {[%clk 0:01:02]}  Rxe5 {[%clk 0:00:06]} 29. Rd4+ {[%clk 0:01:02]}  Kc7 {[%clk 0:00:05]} 30. a4 {[%clk 0:00:31]}  Ra5 {[%clk 0:00:04]} 31. Ke3 {[%clk 0:00:31]}  Rxa4 {[%clk 0:00:04]} 32. Kf4 {[%clk 0:00:32]}  Ra2 {[%clk 0:00:04]} 33. Kg5 {[%clk 0:00:32]}  Rxf2 {[%clk 0:00:05]} 34. Kxg6 {[%clk 0:00:33]}  f4 {[%clk 0:00:04]} 35. Kxh5 {[%clk 0:00:33]}  f3 {[%clk 0:00:04]} 36. Kg4 {[%clk 0:00:33]}  Rf1 {[%clk 0:00:04]} 37. Kg3 {[%clk 0:00:33]} 1-0


[Site "https://www.chess.com"]

[Event "Titled Tuesday Blitz November 15 Early 2022"]
[White "Tristan, Leonardo"]
[Black "Melaugh, Shane"]
[WhiteFideId "113816"]
[BlackFideId "2509580"]
[WhiteElo "2461"]
[BlackElo "2025"]
[Result "1/2-1/2"]
[Round "05"]
[TimeControl "180+1"]
[Date "2022.11.16"]
[WhiteClock "0:00:51"]
[BlackClock "0:00:16"]

1. d4 {[%clk 0:03:00]}  e6 {[%clk 0:02:59]} 2. Nf3 {[%clk 0:02:59]}  f5 {[%clk 0:03:00]} 3. c4 {[%clk 0:02:49]}  Nf6 {[%clk 0:02:56]} 4. Nc3 {[%clk 0:02:48]}  Bb4 {[%clk 0:02:55]} 5. Bd2 {[%clk 0:02:48]}  O-O {[%clk 0:02:55]} 6. g3 {[%clk 0:02:47]}  d6 {[%clk 0:02:47]} 7. Bg2 {[%clk 0:02:47]}  Nc6 {[%clk 0:02:47]} 8. O-O {[%clk 0:02:47]}  Bxc3 {[%clk 0:02:47]} 9. Bxc3 {[%clk 0:02:47]}  Qe7 {[%clk 0:02:47]} 10. b4 {[%clk 0:02:46]}  Ne4 {[%clk 0:02:43]} 11. Be1 {[%clk 0:02:46]}  e5 {[%clk 0:02:41]} 12. b5 {[%clk 0:02:44]}  Nd8 {[%clk 0:02:36]} 13. a4 {[%clk 0:02:31]}  Nf7 {[%clk 0:02:28]} 14. e3 {[%clk 0:02:24]}  Be6 {[%clk 0:02:23]} 15. Rc1 {[%clk 0:02:20]}  c6 {[%clk 0:02:00]} 16. Bb4 {[%clk 0:02:17]}  c5 {[%clk 0:01:55]} 17. Ba3 {[%clk 0:02:15]}  Rad8 {[%clk 0:01:54]} 18. Nd2 {[%clk 0:02:10]}  Nxd2 {[%clk 0:01:54]} 19. Qxd2 {[%clk 0:02:10]}  b6 {[%clk 0:01:50]} 20. Rfd1 {[%clk 0:02:08]}  Ng5 {[%clk 0:01:42]} 21. a5 {[%clk 0:02:04]}  Ne4 {[%clk 0:01:22]} 22. Qe2 {[%clk 0:01:58]}  Qf6 {[%clk 0:01:13]} 23. Bb2 {[%clk 0:01:56]}  Ng5 {[%clk 0:01:03]} 24. dxe5 {[%clk 0:01:54]}  dxe5 {[%clk 0:01:03]} 25. f4 {[%clk 0:01:54]}  Nf7 {[%clk 0:01:00]} 26. Rxd8 {[%clk 0:01:35]}  Rxd8 {[%clk 0:00:59]} 27. Rd1 {[%clk 0:01:36]}  Rxd1+ {[%clk 0:00:46]} 28. Qxd1 {[%clk 0:01:36]}  Bxc4 {[%clk 0:00:46]} 29. fxe5 {[%clk 0:01:37]}  Qe6 {[%clk 0:00:44]} 30. axb6 {[%clk 0:01:21]}  axb6 {[%clk 0:00:45]} 31. Bc6 {[%clk 0:01:22]}  h6 {[%clk 0:00:36]} 32. Qa4 {[%clk 0:01:21]}  Bd5 {[%clk 0:00:28]} 33. Qa8+ {[%clk 0:01:21]}  Kh7 {[%clk 0:00:22]} 34. Bxd5 {[%clk 0:01:21]}  Qg6 {[%clk 0:00:23]} 35. Qe8 {[%clk 0:01:17]}  Qg4 {[%clk 0:00:16]} 36. Qxf7 {[%clk 0:01:04]}  Qd1+ {[%clk 0:00:16]} 37. Kg2 {[%clk 0:01:04]}  Qe2+ {[%clk 0:00:15]} 38. Kh3 {[%clk 0:01:04]}  Qg4+ {[%clk 0:00:15]} 39. Kg2 {[%clk 0:00:57]}  Qe2+ {[%clk 0:00:15]} 40. Kg1 {[%clk 0:00:51]}  Qe1+ {[%clk 0:00:16]} 41. Kg2 {[%clk 0:00:51]}  Qe2+ {[%clk 0:00:16]} 1/2-1/2


[Site "https://www.chess.com"]